fUST/lending_fUST_20260103
["ID","MTS","AMOUNT","RATE_DAILY","PERIOD"]
[400362924,1767439841734,-1000.0,0.00013821,2]
[400362925,1767439841744,-444.75,0.000139,2]
[400362926,1767439841772,-1041.66666667,0.00013927,2]
[400362927,1767439841791,-444.75,0.000142,2]
[400362928,1767439841817,-1000.0,0.00014247,2]
[400362929,1767439841841,-500.0,0.00014247,2]
[400362930,1767439841862,-1000.0,0.00014247,2]
[400362931,1767439841883,-474.44503851,0.00014368,2]
[400362932,1767439841902,-359.18347836,0.00014543,2]
[400362933,1767439841920,-444.75,0.000146,2]
[400362934,1767439841941,-297.89140884,0.00014665,2]
[400362935,1767439841965,-340.44732439,0.00014665,2]
[400362936,1767439841982,-204.00930791,0.00014665,2]
[400362937,1767439842001,-366.84953749,0.00014665,2]
[400362938,1767439842019,-1500.0,0.00014795,2]
[400362939,1767439842037,-151.54965873,0.00014809,2]
[400362940,1767439842051,-250.0,0.00014809,2]
[400362941,1767439842068,-269.61503092,0.00014809,2]
[400362942,1767439842084,-259.22233123,0.00014809,2]
[400362943,1767439842099,-251.79035134,0.00014809,2]
[400362944,1767439842118,-250.0,0.00014809,2]
[400362945,1767439842135,-2674.60743027,0.00014809,2]
[400362946,1767439842152,-151.0,0.00014809,2]
[400362947,1767439842169,-287.42306704,0.00014809,2]
[400362948,1767439842186,-100000.0,0.00014882,2]
[400362949,1767439842202,-444.75,0.000149,2]
[400362950,1767439842218,-1000.0,0.00015,2]
[400362951,1767439842235,-501.07960354,0.00015,2]
[400362952,1767439842252,-587.0,0.00015014,2]
[400362953,1767439842267,-800.0,0.00015068,2]
[400362954,1767439842286,-314.28,0.000151,2]
[400362955,1767439842302,-444.75,0.000152,2]
[400362956,1767439842320,-2000.0,0.00015342,2]
[400362957,1767439842336,-152.42,0.00015406,2]
[400362958,1767439842353,-444.75,0.000156,2]
[400362959,1767439842370,-1080.92186024,0.00015821,2]
[400362960,1767439842387,-2500.0,0.0001589,2]
[400362961,1767439842404,-157.823,0.00015893,2]
[400362962,1767439842421,-444.75,0.000159,2]
[400362963,1767439842439,-8421.0829528,0.000159,2]
[400362964,1767439842456,-3215.74881369,0.00015967,2]
[400362965,1767439842474,-1093.84384208,0.00016164,2]
[400362966,1767439842491,-444.75,0.000162,2]
[400362967,1767439842508,-500.0,0.00016411,2]
[400362968,1767439842526,-500.0,0.00016411,2]
[400362969,1767439842537,-500.0,0.00016411,2]
[400362970,1767439842547,-500.0,0.00016411,2]
[400362971,1767439842556,-500.0,0.00016411,2]
[400362972,1767439842566,-500.0,0.00016411,2]
[400362973,1767439842704,-500.0,0.00016411,2]
[400362977,1767439842770,-500.0,0.00016411,2]
[400362979,1767439842780,-500.0,0.00016411,2]
[400362980,1767439842790,-500.0,0.00016411,2]
[400362982,1767439842799,-500.0,0.00016411,2]
[400362984,1767439842808,-500.0,0.00016411,2]
[400362985,1767439842818,-500.0,0.00016411,2]
[400362986,1767439842827,-500.0,0.00016411,2]
[400362987,1767439842836,-500.0,0.00016411,2]
[400362988,1767439842845,-500.0,0.00016411,2]
[400362989,1767439842855,-484.05461293,0.00016411,2]
[400362990,1767439842864,-323.17909403,0.00016438,2]
[400362991,1767439842873,-972.294013,0.00016438,2]
[400362992,1767439842883,-972.294013,0.00016438,2]
[400362993,1767439842892,-972.294013,0.00016438,2]
[400362994,1767439842901,-972.294013,0.00016438,2]
[400362995,1767439842911,-151.0,0.00016438,2]
[400362996,1767439842920,-864.7,0.00016438,2]
[400362997,1767439842929,-151.0,0.00016438,2]
[400362998,1767439842939,-4547.22578948,0.00016438,2]
[400362999,1767439842949,-4547.22578948,0.00016438,2]
[400363000,1767439842958,-4547.22578948,0.00016438,2]
[400363001,1767439842968,-4547.22578948,0.00016438,2]
[400363002,1767439842977,-4547.22578948,0.00016438,2]
[400363003,1767439842987,-4547.22578948,0.00016438,2]
[400363004,1767439842997,-4547.22578948,0.00016438,2]
[400363005,1767439843006,-4547.22578948,0.00016438,2]
[400363006,1767439843016,-4547.22578948,0.00016438,2]
[400363007,1767439843026,-4547.22578948,0.00016438,2]
[400363008,1767439843035,-4547.22578948,0.00016438,2]
[400363009,1767439843044,-4547.22578948,0.00016438,2]
[400363010,1767439843053,-4547.22578948,0.00016438,2]
[400363011,1767439843063,-4547.22578948,0.00016438,2]
[400363012,1767439843072,-4547.22578948,0.00016438,2]
[400363013,1767439843081,-4547.22578948,0.00016438,2]
[400363014,1767439843091,-4547.22578948,0.00016438,2]
[400363015,1767439843100,-4547.22578948,0.00016438,2]
[400363016,1767439843110,-4547.22578948,0.00016438,2]
[400363017,1767439843120,-4547.22578948,0.00016438,2]
[400363018,1767439843129,-4547.22578948,0.00016438,2]
[400363019,1767439843138,-4547.22578948,0.00016438,2]
[400363020,1767439843147,-4547.22578948,0.00016438,2]
[400363021,1767439843156,-4547.22578948,0.00016438,2]
[400363022,1767439843166,-4547.22578948,0.00016438,2]
[400363023,1767439843176,-4547.22578948,0.00016438,2]
[400363024,1767439843186,-4547.22578948,0.00016438,2]
[400363025,1767439843196,-4547.22578948,0.00016438,2]
[400363026,1767439843206,-4547.22578948,0.00016438,2]
[400363027,1767439843215,-4547.22578948,0.00016438,2]
[400363028,1767439843225,-4547.22578948,0.00016438,2]
[400363029,1767439843235,-4547.22578948,0.00016438,2]
[400363030,1767439843244,-4547.22578948,0.00016438,2]
[400363031,1767439843253,-4547.22578948,0.00016438,2]
[400363033,1767439843263,-4547.22578948,0.00016438,2]
[400363035,1767439843272,-4547.22578948,0.00016438,2]
[400363036,1767439843282,-4547.22578948,0.00016438,2]
[400363037,1767439843291,-4547.22578948,0.00016438,2]
[400363038,1767439843300,-4547.22578948,0.00016438,2]
[400363039,1767439843310,-4547.22578948,0.00016438,2]
[400363040,1767439843320,-4547.22578948,0.00016438,2]
[400363041,1767439843330,-4547.22578948,0.00016438,2]
[400363042,1767439843341,-4547.22578948,0.00016438,2]
[400363043,1767439843351,-4547.22578948,0.00016438,2]
[400363044,1767439843361,-4547.22578948,0.00016438,2]
[400363046,1767439843370,-4547.22578948,0.00016438,2]
[400363047,1767439843380,-4547.22578948,0.00016438,2]
[400363048,1767439843389,-4547.22578948,0.00016438,2]
[400363049,1767439843399,-4547.22578948,0.00016438,2]
[400363050,1767439843409,-4547.22578948,0.00016438,2]
[400363051,1767439843419,-4547.22578948,0.00016438,2]
[400363052,1767439843429,-4547.22578948,0.00016438,2]
[400363053,1767439843443,-4547.22578948,0.00016438,2]
[400363054,1767439843453,-4547.22578948,0.00016438,2]
[400363055,1767439843463,-4547.22578948,0.00016438,2]
[400363056,1767439843473,-4547.22578948,0.00016438,2]
[400363057,1767439843483,-4547.22578948,0.00016438,2]
[400363058,1767439843492,-4547.22578948,0.00016438,2]
[400363059,1767439843502,-4547.22578948,0.00016438,2]
[400363060,1767439843513,-4547.22578948,0.00016438,2]
[400363061,1767439843522,-4547.22578948,0.00016438,2]
[400363062,1767439843531,-4547.22578948,0.00016438,2]
[400363063,1767439843541,-4547.22578948,0.00016438,2]
[400363064,1767439843551,-4547.22578948,0.00016438,2]
[400363065,1767439843560,-4547.22578948,0.00016438,2]
[400363066,1767439843570,-151.0,0.00016438,2]
[400363067,1767439843579,-151.0,0.00016438,2]
[400363068,1767439843589,-154.76883189,0.00016438,2]
[400363069,1767439843599,-164.0102757,0.00016438,2]
[400363070,1767439843608,-151.0,0.00016438,2]
[400363071,1767439843618,-151.0,0.00016438,2]
[400363072,1767439843627,-151.0,0.00016438,2]
[400363073,1767439843637,-151.0,0.00016438,2]
[400363074,1767439843647,-364.58115,0.00016438,2]
[400363075,1767439843656,-364.58115,0.00016438,2]
[400363076,1767439843666,-364.58115,0.00016438,2]
[400363077,1767439843676,-364.58115,0.00016438,2]
[400363078,1767439843685,-3000.0,0.00016438,2]
[400363079,1767439843695,-259.79445274,0.00016438,2]
[400363080,1767439843704,-200.0,0.00016473,2]
[400363081,1767439843714,-823.0,0.00016475,2]
[400363082,1767439843724,-413.97417844,0.00016543,2]
[400363083,1767439843734,-250.0,0.00016584,2]
[400363084,1767439843743,-444.75,0.000166,2]
[400363085,1767439843753,-155.06458157,0.00016712,3]
[400363086,1767439843762,-444.75,0.000169,2]
[400363087,1767439843772,-864.7,0.00016944,2]
[400363088,1767439843781,-3500.0,0.00016986,2]
[400363089,1767439843791,-202.0,0.0001726,3]
[400363090,1767439843801,-444.75,0.000173,2]
[400363091,1767439843811,-864.7,0.00017449,2]
[400363092,1767439843822,-4000.0,0.00017534,2]
[400363093,1767439843832,-444.75,0.000176,2]
[400363094,1767439843842,-1777.63164565,0.0001776,2]
[400363095,1767439843852,-151.0,0.000178,2]
[400363096,1767439843862,-151.0,0.000178,2]
[400363097,1767439843872,-972.294013,0.000178,2]
[400363098,1767439843882,-972.294013,0.000178,2]
[400363099,1767439843891,-972.294013,0.000178,2]
[400363100,1767439843902,-972.294013,0.000178,2]
[400363101,1767439843911,-151.0,0.000178,2]
[400363102,1767439843921,-151.0,0.000178,2]
[400363103,1767439843931,-151.0,0.000178,2]
[400363104,1767439843942,-151.0,0.000178,2]
[400363105,1767439843952,-151.0,0.000178,2]
[400363106,1767439843961,-151.0,0.000178,2]
[400363107,1767439843971,-41486.2482893,0.000178,3]
[400363110,1767439844398,-3e-08,0.000178,3]
[400363122,1767439922084,179.03,0.0001204,2]
[400363123,1767439993091,192.59,0.00011115,2]
[400363124,1767439993495,240.74,0.00011578,2]
[400363125,1767439994021,224.72638105,0.00012041,2]
[400363126,1767439994046,64.16361895,0.00012041,2]
[400363127,1767439999781,169.3719332,5.74e-05,2]
[400363128,1767440033189,5000.0,0.00012188,2]
[400363129,1767440057060,4766.47444785,0.00012188,2]
[400363130,1767440057085,233.52555215,0.00012188,2]
[400363131,1767440065514,155.82,0.00011138,2]
[400363132,1767440065921,194.78,0.00011602,2]
[400363133,1767440066543,233.74,0.00012067,2]
[400363134,1767440081878,5000.0,0.00012188,2]
[400363135,1767440106289,4182.14444785,0.00012188,2]
[400363136,1767440106315,817.85555215,0.00012188,2]
[400363137,1767440128748,486.39,0.000121,2]
[400363138,1767440130278,5000.0,0.00012188,2]
[400363139,1767440138599,157.6,0.0001196,2]
[400363140,1767440154763,5000.0,0.00012127,2]
[400363141,1767440178728,4842.41,0.00012127,2]
[400363142,1767440178754,157.59,0.00012127,2]
[400363143,1767440188455,338.85,0.000121,2]
[400363144,1767440202800,5000.0,0.00012127,2]
[400363145,1767440211432,182.57,0.00011604,2]
[400363146,1767440211892,228.21,0.00012087,2]
[400363147,1767440226745,2039.79834253,0.00012127,2]
[400363148,1767440248500,483.44,0.000121,2]
[400363149,1767440279460,483.28,7.992e-05,2]
[400363150,1767440279723,483.28,7.992e-05,2]
[400363151,1767440285232,161.66,0.00011606,2]
[400363152,1767440285770,202.07,0.00012089,2]
[400363153,1767440308112,341.74,0.000121,2]
[400363154,1767440357811,178.93,0.00011723,2]
[400363155,1767440368151,215.03165747,0.000121,2]
[400363156,1767440368175,276.19834253,0.000121,2]
[400363157,1767440429730,351.24,0.000121,2]
[400363158,1767440430273,167.54,0.00011786,2]
[400363159,1767440488567,498.97,0.000121,2]
[400363160,1767440548164,360.78,0.000121,2]
[400363161,1767440549345,8345.28165747,0.00011326,2]
[400363162,1767440549367,1654.71834253,0.00011326,2]
[400363163,1767440609956,506.68,0.000121,2]
[400363164,1767440667833,370.36,0.000121,2]
[400363165,1767440725799,514.34,0.000121,2]
[400363166,1767440727468,500.0,0.00012052,2]
[400363167,1767440776986,156.88,0.00011966,2]
[400363168,1767440795286,386.72,0.000121,2]
[400363171,1767440846139,522.1,0.000121,2]
[400363172,1767440906489,396.24,0.000121,2]
[400363173,1767440909154,3290.4063742,0.00012127,2]
[400363174,1767440917161,3356.2836258,0.00012127,2]
[400363175,1767440917187,1643.7163742,0.00012127,2]
[400363176,1767440940248,1484.38357169,0.00012127,2]
[400363177,1767440964252,163.77131589,0.00012127,2]
[400363178,1767440965791,519.58,0.000121,2]
[400363179,1767440967784,-500.0,0.00012189,2]
[400363180,1767440967809,-87.09067637,0.0001219,2]
[400363186,1767440969705,-190.34432457,0.0001219,2]
[400363190,1767440983854,166.83,0.00010907,2]
[400363191,1767440984388,208.53,0.00011362,2]
[400363192,1767440984736,250.24,0.00011816,2]
[400363195,1767441024833,406.05,0.000121,2]
[400363232,1767441034951,1000.01,0.00012127,2]
[400363239,1767441038451,-592.0,0.0001219,2]
[400363240,1767441038461,-43.37206848,0.0001219,2]
[400363241,1767441038471,-500.0,0.00012223,2]
[400363242,1767441038480,-500.0,0.00012223,2]
[400363243,1767441038490,-500.0,0.00012223,2]
[400363244,1767441038499,-200.01292745,0.00012223,2]
[400363245,1767441038509,-533.08894672,0.00012223,2]
[400363246,1767441038519,-500.0,0.00012223,2]
[400363247,1767441038529,-500.0,0.00012223,2]
[400363248,1767441038539,-500.0,0.00012223,2]
[400363249,1767441038549,-500.0,0.00012223,2]
[400363250,1767441038558,-500.0,0.00012223,2]
[400363251,1767441038567,-377.26684929,0.00012223,2]
[400363252,1767441038580,-122.73315071,0.00012223,2]
[400363253,1767441038595,-500.0,0.00012223,2]
[400363254,1767441038606,-500.0,0.00012223,2]
[400363255,1767441038616,-500.0,0.00012223,2]
[400363256,1767441038626,-500.0,0.00012223,2]
[400363257,1767441038636,-432.99451799,0.00012223,2]
[400363258,1767441038722,-67.00548201,0.00012223,2]
[400363259,1767441038732,-500.0,0.00012223,2]
[400363260,1767441038743,-500.0,0.00012223,2]
[400363261,1767441038753,-500.0,0.00012223,2]
[400363262,1767441038763,-500.0,0.00012223,2]
[400363263,1767441038776,-500.0,0.00012223,2]
[400363264,1767441038787,-223.24618329,0.00012223,2]
[400363265,1767441038803,-276.75381671,0.00012223,2]
[400363266,1767441038814,-500.0,0.00012223,2]
[400363267,1767441038826,-500.0,0.00012223,2]
[400363268,1767441038843,-582.81522498,0.00012223,2]
[400363269,1767441038856,-800.48303223,0.00012223,2]
[400363270,1767441038866,-500.0,0.00012223,2]
[400363271,1767441038876,-500.0,0.00012223,2]
[400363272,1767441038888,-500.0,0.00012223,2]
[400363273,1767441038897,-500.0,0.00012223,2]
[400363274,1767441038907,-582.81522498,0.00012223,2]
[400363275,1767441039016,-720.85988683,0.00012223,2]
[400363276,1767441039027,-199.95033953,0.00012223,2]
[400363277,1767441039041,-600.5326927,0.00012223,2]
[400363278,1767441039050,-500.0,0.00012223,2]
[400363279,1767441039060,-582.81522498,0.00012223,2]
[400363280,1767441039070,-64.94695795,0.00012223,2]
[400363281,1767441039086,-468.22722687,0.00012223,2]
[400363282,1767441039097,-14.01442492,0.00012223,2]
[400363283,1767441039171,-485.98557508,0.00012223,2]
[400363284,1767441039183,-720.85988683,0.00012223,2]
[400363285,1767441039194,-800.48303223,0.00012223,2]
[400363286,1767441039204,-500.0,0.00012223,2]
[400363287,1767441039214,-500.0,0.00012223,2]
[400363288,1767441039225,-500.0,0.00012223,2]
[400363289,1767441039235,-582.81522498,0.00012223,2]
[400363290,1767441039251,-500.0,0.00012223,2]
[400363291,1767441039261,-720.85988683,0.00012223,2]
[400363292,1767441039271,-800.48303223,0.00012223,2]
[400363293,1767441039281,-582.81522498,0.00012223,2]
[400363294,1767441039292,-500.0,0.00012223,2]
[400363295,1767441039302,-720.85988683,0.00012223,2]
[400363296,1767441039312,-800.48303223,0.00012223,2]
[400363297,1767441039323,-296.97483122,0.00012223,2]
[400363298,1767441039333,-582.81522498,0.00012223,2]
[400363299,1767441039343,-500.0,0.00012223,2]
[400363300,1767441039354,-500.0,0.00012223,2]
[400363301,1767441039365,-720.85988683,0.00012223,2]
[400363302,1767441039376,-800.48303223,0.00012223,2]
[400363303,1767441039386,-586.16215602,0.00012223,2]
[400363304,1767441039396,-582.81522498,0.00012223,2]
[400363305,1767441039406,-500.0,0.00012223,2]
[400363306,1767441039417,-500.0,0.00012223,2]
[400363307,1767441039427,-545.4408352,0.00012223,2]
[400363308,1767441039440,-720.85988683,0.00012223,2]
[400363309,1767441039450,-800.48303223,0.00012223,2]
[400363310,1767441039460,-582.81522498,0.00012223,2]
[400363311,1767441039471,-500.0,0.00012223,2]
[400363312,1767441039481,-720.85988683,0.00012223,2]
[400363313,1767441039492,-800.48303223,0.00012223,2]
[400363314,1767441039503,-500.0,0.00012223,2]
[400363315,1767441039513,-500.0,0.00012223,2]
[400363316,1767441039523,-720.85988683,0.00012223,2]
[400363317,1767441039533,-582.81522498,0.00012223,2]
[400363318,1767441039550,-800.48303223,0.00012223,2]
[400363319,1767441039573,-500.0,0.00012223,2]
[400363320,1767441039591,-582.81522498,0.00012223,2]
[400363321,1767441039613,-720.85988683,0.00012223,2]
[400363322,1767441039634,-800.48303223,0.00012223,2]
[400363323,1767441039655,-500.0,0.00012223,2]
[400363324,1767441039676,-300.0,0.00012223,2]
[400363325,1767441039697,-300.0,0.00012223,2]
[400363326,1767441039715,-300.0,0.00012223,2]
[400363327,1767441039735,-1200.0,0.00012223,2]
[400363328,1767441039756,-300.0,0.00012223,2]
[400363329,1767441039781,-590380.59829999,0.00012224,2]
[400363330,1767441039795,-291.95,0.00012271,2]
[400363331,1767441039812,-1200.0,0.00012321,2]
[400363332,1767441039833,-300.0,0.00012321,2]
[400363333,1767441039851,-500.0,0.00012321,2]
[400363334,1767441039867,-50000.0,0.00012322,2]
[400363335,1767441039882,-500.0,0.00012328,2]
[400363336,1767441039902,-426.36,0.00012329,2]
[400363337,1767441039918,-355.3,0.00012329,2]
[400363338,1767441039935,-296.08,0.00012329,2]
[400363339,1767441039951,-246.73,0.00012329,2]
[400363341,1767441039968,-205.61,0.00012329,2]
[400363342,1767441039984,-171.34,0.00012329,2]
[400363343,1767441040001,-856.75,0.00012329,2]
[400363344,1767441040018,-406.05,0.000125,2]
[400363346,1767441040052,-500.0,0.00012602,2]
[400363350,1767441040084,-4124.18347569,0.00012684,2]
[400363354,1767441040109,-333.65,0.00012725,2]
[400363359,1767441040133,-406.05,0.000128,2]
[400363364,1767441040156,-500.0,0.00012876,2]
[400363368,1767441040175,-6030.01708163,0.000129,2]
[400363371,1767441040196,-223.22806926,0.00013,2]
[400363372,1767441040215,-406.05,0.000131,2]
[400363375,1767441040233,-500.0,0.0001315,2]
[400363378,1767441040251,-375.36,0.0001318,2]
[400363381,1767441040269,-500.0,0.00013273,2]
[400363384,1767441040287,-502.86490349,0.00013273,2]
[400363387,1767441040303,-489.45983528,0.00013273,2]
[400363389,1767441040321,-500.0,0.00013273,2]
[400363390,1767441040339,-161.79331584,0.00013273,2]
[400363392,1767441040355,-500.0,0.00013273,2]
[400363393,1767441040373,-500.74961065,0.00013273,2]
[400363394,1767441040389,-500.0,0.00013273,2]
[400363395,1767441040407,-500.0,0.00013273,2]
[400363396,1767441040422,-501.20972586,0.00013273,2]
[400363397,1767441040432,-500.91796421,0.00013273,2]
[400363398,1767441040442,-500.70079178,0.00013273,2]
[400363399,1767441040452,-500.37577239,0.00013273,2]
[400363400,1767441040463,-500.0,0.00013273,2]
[400363401,1767441040473,-502.52676973,0.00013273,2]
[400363402,1767441040488,-500.55502892,0.00013273,2]
[400363409,1767441040499,-371.29616414,0.00013273,2]
[400363410,1767441040721,-500.40812858,0.00013273,2]
[400363411,1767441040734,-500.35714375,0.00013273,2]
[400363412,1767441040744,-500.0,0.00013273,2]
[400363413,1767441040754,-500.48237545,0.00013273,2]
[400363414,1767441040764,-530.84744,0.00013273,2]
[400363415,1767441040774,-500.0,0.00013273,2]
[400363416,1767441040787,-500.0,0.00013273,2]
[400363417,1767441040797,-500.0,0.00013273,2]
[400363418,1767441040806,-500.0,0.00013273,2]
[400363419,1767441040816,-500.0,0.00013273,2]
[400363420,1767441040826,-420.0,0.00013415,2]
[400363421,1767441040835,-420.0,0.00013415,2]
[400363422,1767441040846,-420.0,0.00013415,2]
[400363423,1767441040855,-420.0,0.00013415,2]
[400363424,1767441040864,-291.78649388,0.00013424,2]
[400363425,1767441040879,-365.14,0.00013438,2]
[400363426,1767441040900,-270.02,0.00013438,2]
[400363427,1767441040911,-270.02,0.00013438,2]
[400363428,1767441040921,-270.02,0.00013438,2]
[400363429,1767441040931,-270.02,0.00013438,2]
[400363430,1767441040945,-270.02,0.00013438,2]
[400363431,1767441040954,-270.02,0.00013438,2]
[400363432,1767441040964,-270.04,0.00013438,2]
[400363433,1767441040974,-406.05,0.000135,2]
[400363434,1767441040984,-1680.0,0.00013522,2]
[400363435,1767441040993,-420.0,0.00013554,2]
[400363436,1767441041003,-417.07,0.00013634,2]
[400363437,1767441041012,-289.90282743,0.00013663,2]
[400363438,1767441041022,-300.0,0.00013673,2]
[400363439,1767441041031,-250.0,0.00013684,2]
[400363440,1767441041041,-518.65088153,0.00013698,2]
[400363441,1767441041051,-529.5136224,0.00013698,2]
[400363442,1767441041060,-191.60962152,0.00013698,2]
[400363443,1767441041070,-500.0,0.00013698,2]
[400363444,1767441041079,-500.0,0.00013698,2]
[400363445,1767441041088,-500.0,0.00013698,2]
[400363446,1767441041098,-500.0,0.00013698,2]
[400363447,1767441041107,-500.0,0.00013698,2]
[400363448,1767441041117,-500.0,0.00013698,2]
[400363449,1767441041127,-500.0,0.00013698,2]
[400363450,1767441041136,-500.0,0.00013698,2]
[400363451,1767441041145,-500.0,0.00013698,2]
[400363452,1767441041155,-500.0,0.00013698,2]
[400363453,1767441041164,-500.0,0.00013698,2]
[400363454,1767441041174,-500.0,0.00013698,2]
[400363455,1767441041183,-500.0,0.00013698,2]
[400363456,1767441041192,-500.0,0.00013698,2]
[400363457,1767441041204,-500.0,0.00013698,2]
[400363458,1767441041214,-500.0,0.00013698,2]
[400363459,1767441041224,-500.0,0.00013698,2]
[400363460,1767441041233,-500.0,0.00013698,2]
[400363461,1767441041243,-511.6918153,0.00013698,2]
[400363462,1767441041253,-1730.16,0.00013698,2]
[400363463,1767441041262,-1730.16,0.00013698,2]
[400363464,1767441041271,-1730.16,0.00013698,2]
[400363465,1767441041283,-1730.16,0.00013698,2]
[400363466,1767441041293,-1730.16,0.00013698,2]
[400363467,1767441041302,-1730.16,0.00013698,2]
[400363468,1767441041312,-1730.16,0.00013698,2]
[400363469,1767441041322,-1730.16,0.00013698,2]
[400363470,1767441041331,-1730.16,0.00013698,2]
[400363471,1767441041341,-1730.16,0.00013698,2]
[400363472,1767441041350,-1730.16,0.00013698,2]
[400363473,1767441041361,-1730.16,0.00013698,2]
[400363474,1767441041371,-1730.16,0.00013698,2]
[400363475,1767441041381,-1730.16,0.00013698,2]
[400363476,1767441041391,-1730.16,0.00013698,2]
[400363477,1767441041401,-1730.16,0.00013698,2]
[400363478,1767441041411,-1730.16,0.00013698,2]
[400363479,1767441041421,-1730.16,0.00013698,2]
[400363480,1767441041430,-1730.16,0.00013698,2]
[400363481,1767441041440,-1730.16,0.00013698,2]
[400363482,1767441041450,-1730.16,0.00013698,2]
[400363483,1767441041459,-1730.16,0.00013698,2]
[400363484,1767441041468,-1730.16,0.00013698,2]
[400363485,1767441041478,-1730.18390779,0.00013698,2]
[400363486,1767441041488,-500.0,0.00013698,2]
[400363487,1767441041497,-500.0,0.00013698,2]
[400363488,1767441041506,-500.0,0.00013698,2]
[400363489,1767441041516,-500.0,0.00013698,2]
[400363490,1767441041525,-500.0,0.00013698,2]
[400363491,1767441041535,-500.0,0.00013698,2]
[400363492,1767441041544,-500.0,0.00013698,2]
[400363493,1767441041554,-500.0,0.00013698,2]
[400363494,1767441041564,-500.0,0.00013698,2]
[400363495,1767441041573,-500.0,0.00013698,2]
[400363496,1767441041584,-500.0,0.00013698,2]
[400363497,1767441041594,-500.0,0.00013698,2]
[400363498,1767441041604,-500.0,0.00013698,2]
[400363499,1767441041614,-500.0,0.00013698,2]
[400363500,1767441041624,-1167.579961,0.00013699,2]
[400363501,1767441041635,-470.3499274,0.00013699,2]
[400363502,1767441041644,-330.734172,0.00013699,2]
[400363503,1767441041654,-500.0,0.00013699,2]
[400363504,1767441041663,-500.0,0.00013699,2]
[400363505,1767441041673,-500.0,0.00013699,2]
[400363506,1767441041683,-501.0990515,0.00013699,2]
[400363507,1767441041693,-406.05,0.000138,2]
[400363508,1767441041702,-1000.0,0.00013821,2]
[400363509,1767441041711,-673.31490018,0.00013821,2]
[400363510,1767441041721,-1000.0,0.00013821,2]
[400363511,1767441041731,-1000.0,0.00013821,2]
[400363512,1767441041740,-1041.66666667,0.00013923,2]
[400363513,1767441041750,-378.55234192,0.0001419,2]
[400363514,1767441041760,-406.05,0.000142,2]
[400363515,1767441041770,-500.0,0.00014247,2]
[400363516,1767441041785,-1000.0,0.00014247,2]
[400363517,1767441041794,-1000.0,0.00014247,2]
[400363518,1767441041804,-1500.0,0.00014368,2]
[400363519,1767441041813,-474.44503851,0.00014368,2]
[400363520,1767441041826,-406.05,0.000145,2]
[400363521,1767441041835,-250.0,0.00014671,2]
[400363522,1767441041845,-30000.0,0.00014671,2]
[400363523,1767441041856,-269.61503092,0.00014671,2]
[400363524,1767441041865,-251.79035134,0.00014671,2]
[400363525,1767441041875,-250.0,0.00014671,2]
[400363526,1767441041885,-250.0,0.00014671,2]
[400363527,1767441041895,-250.0,0.00014671,2]
[400363528,1767441041905,-250.0,0.00014671,2]
[400363529,1767441041916,-250.0,0.00014671,2]
[400363530,1767441041926,-250.0,0.00014671,2]
[400363531,1767441041937,-250.0,0.00014671,2]
[400363532,1767441041955,-250.0,0.00014671,2]
[400363533,1767441041971,-151.54965873,0.00014671,2]
[400363534,1767441041983,-2674.60743027,0.00014671,2]
[400363535,1767441041993,-163.3,0.00014693,2]
[400363536,1767441042005,-215.0,0.00014723,2]
[400363537,1767441042015,-587.0,0.00014723,2]
[400363538,1767441042026,-180.0,0.00014723,2]